bitfinex/quotes_ETHUSD_20241216
["timestamp","ask_amount","ask_price","bid_price","bid_amount"]
[1734374557406,0.43950866,4073.6,4073.3,0.026693]
[1734374558165,2.89435866,4073.6,4073.3,0.026693]
[1734374558491,2.45495,4073.4,4073.3,0.026693]
[1734374558678,0.43950866,4073.6,4073.3,0.026693]
[1734374558854,2.89433866,4073.6,4073.3,0.026693]
[1734374559054,0.39174653,4073.5,4073.3,0.026693]
[1734374559264,0.43950866,4073.6,4073.3,0.026693]
[1734374559492,0.43950866,4073.6,4073.4,0.8106]
[1734374560370,0.00637927,4073.7,4073.4,0.8106]
[1734374561781,0.00637927,4073.7,4073.3,0.026693]
[1734374562922,3.37195997,4073.4,4073.3,0.026693]
[1734374563208,0.00637927,4073.7,4073.3,0.026693]
[1734374563874,2.45489,4073.5,4073.3,0.026693]
[1734374564070,6.8577369,4073.4,4073.3,0.026693]
[1734374564293,7.08690106,4073.4,4073.3,0.026693]
[1734374564812,3.71503106,4073.4,4073.3,0.026693]
[1734374566494,4.73177844,4073.4,4073.3,0.026693]
[1734374566684,3.71503106,4073.4,4073.3,0.026693]
[1734374566885,4.73177844,4073.4,4073.3,0.026693]
[1734374567484,4.50252431,4073.4,4073.3,0.026693]
[1734374567685,4.73170995,4073.4,4073.3,0.026693]
[1734374568115,3.94700995,4073.4,4073.3,0.026693]
[1734374568306,1.09029157,4073.4,4073.3,0.026693]
[1734374569117,3.54524157,4073.4,4073.3,0.026693]
[1734374569298,4.33454157,4073.4,4073.3,0.026693]
[1734374570849,5.35128895,4073.4,4073.3,0.026693]
[1734374571141,5.35128895,4073.4,4070.7,0.806]
[1734374571142,0.7624,4073.2,4070.7,0.806]
[1734374571311,3.37195997,4072.9,4070.9,0.806]
[1734374571511,0.22918564,4072.8,4070.9,0.806]
[1734374571773,0.22918564,4072.7,4070.9,0.806]
[1734374571919,5.82725997,4072.9,4071.0,0.806]
[1734374571920,0.22918564,4072.6,4071.0,0.806]
[1734374572121,0.22918564,4072.5,4071.1,0.83055969]
[1734374572351,0.22918564,4072.4,4071.3,0.806]
[1734374572540,0.22918564,4072.3,4071.3,0.806]
[1734374572737,0.22918564,4072.2,4071.3,0.806]
[1734374572956,0.22918564,4072.1,4071.5,0.806]
[1734374573135,0.22918564,4072.0,4071.5,0.806]
[1734374573337,0.22918564,4071.9,4071.5,0.806]
[1734374573552,0.4693738,4073.3,4071.8,3.0]
[1734374573869,0.22917053,4073.2,4071.9,0.7954]
[1734374574068,0.83687949,4073.2,4071.9,0.7954]
[1734374574290,0.22916637,4073.1,4071.9,0.7954]
[1734374574490,0.22916637,4073.0,4071.9,0.7954]
[1734374574648,0.22916637,4072.9,4071.9,0.7954]
[1734374574850,0.22916637,4072.8,4071.9,0.7954]
[1734374575044,0.00637927,4073.7,4072.3,0.8109]
[1734374575444,0.00637927,4073.7,4072.5,0.8109]
[1734374575687,0.00637927,4073.7,4072.5,1.10728429]
[1734374575890,3.37893019,4073.7,4072.5,0.8109]
[1734374576060,0.33789302,4073.6,4072.5,0.8109]
[1734374576262,2.79527093,4073.3,4072.5,0.8109]
[1734374577387,2.79527093,4072.9,4071.4,0.77016682]
[1734374577796,2.79527093,4072.1,4071.4,0.77016682]
[1734374577949,2.79527093,4072.5,4071.4,0.77016682]
[1734374578149,0.62751234,4072.4,4071.4,0.77016682]
[1734374578349,2.79527093,4072.5,4071.4,0.77016682]
[1734374579054,3.81972342,4072.5,4071.4,0.77016682]
[1734374579266,2.79527093,4072.5,4071.4,0.77016682]
[1734374579592,2.79527093,4072.1,4071.4,0.77016682]
[1734374579789,0.27952709,4072.0,4071.4,0.77016682]
[1734374580989,0.27952709,4072.0,4071.4,1.28016682]
[1734374581768,1.02445249,4072.4,4071.4,1.28016682]
[1734374582468,3.81972342,4072.5,4071.4,1.28016682]
[1734374582815,1.02445249,4072.4,4071.4,1.28016682]
[1734374583278,1.02445249,4072.3,4071.4,1.28016682]
[1734374583611,1.02445249,4072.4,4071.4,1.28016682]
[1734374583815,0.00637927,4071.9,4071.4,1.28016682]
[1734374585888,0.00637927,4071.9,4071.5,0.7789]
[1734374587026,0.22897132,4071.8,4071.5,0.7789]
[1734374587216,0.00637927,4071.9,4071.5,0.7789]
[1734374587217,0.22897132,4071.7,4071.5,0.7789]
[1734374587385,0.22897132,4071.6,4071.5,0.7789]
[1734374587580,0.22897132,4071.6,4071.5,0.90779]
[1734374587996,0.22897132,4071.6,4071.5,0.7789]
[1734374589029,0.00637927,4071.9,4071.5,0.7789]
[1734374589231,0.22895507,4071.8,4071.5,0.7789]
[1734374589429,0.22895507,4071.7,4071.5,0.7789]
[1734374589732,0.22895507,4071.6,4071.5,0.7789]
[1734374590888,5.07e-06,4071.6,4071.5,0.90779]
[1734374591082,0.00637927,4071.9,4071.5,0.90779]
[1734374591537,0.00637927,4071.9,4071.5,0.7789]
[1734374591731,0.00637927,4071.9,4071.5,3.7789]
[1734374592389,0.00637927,4071.9,4071.5,0.7789]
[1734374592902,0.00637927,4071.9,4071.4,0.51]
[1734374593103,2.79527093,4071.8,4071.4,0.51]
[1734374593315,0.28016502,4071.7,4071.4,0.51]
[1734374594449,9.27e-06,4071.9,4071.6,0.8131]
[1734374594592,0.7777,4073.5,4071.6,0.8131]
[1734374594593,2.79527093,4073.5,4071.8,0.8131]
[1734374594786,2.79527093,4073.9,4072.0,0.8131]
[1734374595015,0.7777,4074.0,4072.2,0.7629]
[1734374595016,2.79527093,4073.5,4072.2,0.7629]
[1734374595438,2.79527093,4073.1,4072.2,0.7629]
[1734374595611,0.27952709,4073.0,4072.2,0.7629]
[1734374596232,1.11052709,4073.0,4072.2,0.7629]
[1734374597346,1.11052709,4073.0,4071.9,3.0]
[1734374597744,2.79527093,4072.7,4071.6,0.7629]
[1734374598913,2.79527093,4072.3,4071.6,0.7629]
[1734374599116,1.11052709,4073.0,4071.6,0.7629]
[1734374599505,1.11052709,4073.0,4071.6,1.13600035]
[1734374599749,0.27952709,4073.0,4071.7,0.37310035]
[1734374600051,3.62627093,4073.4,4071.9,0.7629]
[1734374600260,0.12755418,4073.8,4072.0,0.82804001]
[1734374600261,2.92282511,4073.8,4072.0,0.82804001]
[1734374600560,1.10402339,4074.1,4072.2,0.7984]
[1734374600704,1.10402339,4074.1,4072.4,0.7984]
[1734374600905,1.10402339,4074.1,4072.6,0.7984]
[1734374602077,1.10402339,4074.1,4072.6,0.92511106]
[1734374602229,0.98124,4074.1,4072.6,0.92511106]
[1734374602561,1.35889109,4074.1,4072.6,0.92511106]
[1734374602764,0.22860473,4074.0,4072.6,0.92511106]
[1734374602925,0.22860473,4073.9,4072.6,0.92511106]
[1734374603129,0.22860473,4073.8,4072.6,0.92511106]
[1734374603463,0.22860473,4073.7,4072.6,0.92511106]
[1734374603670,0.22860473,4073.6,4072.6,0.92511106]
[1734374603871,0.22860473,4073.5,4072.6,0.92511106]
[1734374604069,1.84305249,4074.6,4072.6,0.92511106]
[1734374604070,0.04637654,4075.1,4072.6,0.92511106]
[1734374604231,0.30252078,4075.1,4072.7,0.73651111]
[1734374604443,0.981188,4074.5,4072.8,0.7532]
[1734374604644,0.12724438,4075.0,4072.8,0.7532]
[1734374604854,0.7532,4074.9,4072.9,1.13271877]
[1734374605052,0.7532,4074.9,4072.9,0.7532]
[1734374605274,0.7532,4074.9,4072.9,0.91484222]
[1734374605647,0.12402165,4074.6,4073.1,0.7532]
[1734374605854,2.79527093,4076.2,4073.9,0.7532]
[1734374606038,0.7532,4075.8,4074.0,0.37951877]
[1734374606240,0.7532,4075.8,4074.1,0.7532]
[1734374606481,0.12517408,4075.5,4074.2,0.37951877]
[1734374607578,0.6717,4075.9,4074.2,0.37951877]
[1734374607579,3.12448704,4075.9,4074.2,0.37951877]
[1734374607904,0.50221941,4075.7,4074.1,0.7532]
[1734374608243,2.56144243,4076.9,4074.3,0.7532]
[1734374608544,3.23995502,4077.3,4074.2,0.37951877]
[1734374608545,0.671047,4076.6,4074.5,0.787]
[1734374608747,2.57297527,4075.9,4074.5,0.787]
[1734374608940,2.57297527,4075.9,4074.7,0.50231745]
[1734374608941,2.79527093,4075.6,4074.7,0.50231745]
[1734374610850,0.25729753,4075.8,4074.8,0.7904]
[1734374611083,2.45252,4077.5,4074.7,0.50231745]
[1734374611084,2.79527093,4076.4,4074.9,0.7904]
[1734374611242,2.79527093,4075.2,4074.9,0.7904]
[1734374612272,2.79527093,4075.2,4074.9,1.27869747]
[1734374614078,2.79527093,4075.2,4074.9,0.7904]
[1734374615190,2.45406,4074.9,4074.2,0.7542]
[1734374615499,2.79527093,4074.2,4073.3,0.8265]
[1734374615707,0.6711,4074.6,4071.9,3.44]
[1734374615708,2.79527093,4073.4,4072.0,0.8265]
[1734374616003,0.48144707,4074.3,4072.0,0.8265]
[1734374616004,2.79527093,4072.8,4072.0,0.8265]
[1734374616222,2.79527093,4072.8,4071.6,0.37951877]
[1734374616223,2.79527093,4073.9,4072.2,0.8265]
[1734374616374,2.79527093,4073.9,4072.3,1.24299355]
[1734374616577,2.79527093,4073.9,4072.4,0.8283]
[1734374616767,2.79527093,4074.3,4072.6,0.8283]
[1734374616978,2.79527093,4074.9,4072.8,0.8283]
[1734374617217,2.79527093,4074.9,4073.0,3.44]
[1734374617424,2.79527093,4074.4,4073.2,1.3172]
[1734374617605,2.79527093,4074.4,4073.4,0.7672]
[1734374617922,2.79527093,4074.4,4073.5,0.37951877]
[1734374618219,2.79527093,4074.4,4074.3,0.50085394]
[1734374618399,2.79527093,4074.4,4074.3,1.26805394]
[1734374619082,2.79527093,4074.4,4074.3,1.64757271]
[1734374619282,2.79527093,4074.4,4074.3,1.43281121]
[1734374620517,2.79527093,4074.4,4074.3,1.26805394]
[1734374622584,2.70363623,4074.4,4074.3,1.26805394]
[1734374623106,2.70363623,4074.4,4074.3,1.14671877]
[1734374623309,2.70363623,4074.8,4074.3,1.14671877]
[1734374623511,2.70363623,4074.8,4074.4,0.37951877]
[1734374623813,2.70363623,4074.8,4074.5,0.9279265]
[1734374624168,0.1662241,4077.3,4075.9,0.25]
[1734374624391,0.1662241,4077.3,4076.1,3.0]
[1734374624392,0.29208317,4077.3,4076.1,3.0]
[1734374624591,0.29208317,4077.3,4076.3,0.7737]
[1734374624819,0.29208317,4077.3,4076.4,1.31924004]
[1734374625018,0.29208317,4077.3,4076.5,0.8321]
[1734374625191,0.1662241,4077.3,4076.7,0.8048]
[1734374625397,0.1662241,4077.3,4076.8,1.31924004]
[1734374625598,4.1e-06,4077.3,4076.9,0.8048]
[1734374625837,4.1e-06,4077.3,4077.0,0.69799837]
[1734374626157,4.1e-06,4077.3,4076.9,1.42604167]
[1734374626432,4.1e-06,4077.3,4076.9,0.8048]
[1734374626433,0.22753442,4077.2,4076.9,0.8048]
[1734374626592,0.22753442,4077.1,4076.9,0.8048]
[1734374626793,4.1e-06,4077.3,4076.9,0.8048]
[1734374626995,0.22754104,4077.2,4076.9,0.8048]
[1734374627328,0.22754104,4077.1,4076.9,0.8048]
[1734374627634,0.22754104,4077.1,4076.0,3.0]
[1734374627635,4.1e-06,4077.3,4076.4,0.7781]
[1734374627810,0.22753101,4077.2,4076.4,0.7781]
[1734374628012,0.49554552,4077.1,4076.4,0.7781]
[1734374628335,0.22753101,4077.0,4076.4,0.7781]
[1734374628701,4.1e-06,4077.3,4076.4,0.7781]
[1734374628898,0.22764079,4077.2,4076.4,0.7781]
[1734374629134,0.22764079,4077.1,4076.4,0.7781]
[1734374629344,0.22764079,4077.0,4076.4,0.7781]
[1734374629498,4.1e-06,4077.3,4076.4,0.7781]
[1734374629700,0.22765441,4077.2,4076.4,0.7781]
[1734374630047,0.22765441,4077.1,4076.4,0.7781]
[1734374630230,4.1e-06,4077.3,4076.4,0.7781]
[1734374630538,0.22763294,4077.2,4076.4,1.19228962]
[1734374630715,4.1e-06,4077.3,4076.4,1.19228962]
[1734374631059,4.1e-06,4077.3,4076.6,0.7857]
[1734374631266,4.1e-06,4077.3,4076.7,3.44]
[1734374631540,4.1e-06,4077.3,4076.6,0.7857]
[1734374631747,0.22757005,4077.2,4076.6,0.7857]
[1734374631953,4.1e-06,4077.3,4076.6,0.7857]
[1734374632128,0.22757337,4077.2,4076.6,0.7857]
[1734374632331,0.22754012,4077.1,4076.6,0.7857]
[1734374632537,4.1e-06,4077.3,4076.6,0.7857]
[1734374632860,0.2275895,4077.2,4076.6,0.7857]
[1734374633004,4.1e-06,4077.3,4076.6,0.7857]
[1734374633349,4.1e-06,4077.3,4076.7,0.41418962]
[1734374633667,4.1e-06,4077.3,4076.7,3.41418962]
[1734374633959,4.1e-06,4077.3,4076.7,0.41418962]
[1734374634136,0.50776606,4078.4,4076.7,0.41418962]
[1734374634137,0.00670321,4078.4,4077.1,4.2168]
[1734374634336,0.00670321,4078.4,4077.5,0.7768]
[1734374634337,0.22741986,4078.3,4077.5,0.7768]
[1734374634550,0.00670321,4078.4,4077.5,0.7768]
[1734374634551,0.00670321,4078.4,4077.6,0.41418962]
[1734374634754,0.00670321,4078.4,4077.7,0.8321]
[1734374634959,1.91870321,4079.0,4078.1,3.0]
[1734374635161,0.22739263,4078.9,4078.2,1.24628962]
[1734374635363,1.91870321,4079.0,4078.2,1.24628962]
[1734374635699,1.91870321,4079.0,4078.3,0.40097751]
[1734374635830,1.91870321,4079.0,4078.5,3.0]
[1734374636178,1.91870321,4079.0,4078.6,1.15941462]
[1734374636865,1.91870321,4079.0,4078.7,0.35091462]
[1734374637256,0.02566631,4079.6,4079.0,0.7906]
[1734374637420,0.02566631,4079.6,4079.1,0.72001713]
[1734374637626,0.02566631,4079.6,4079.0,0.7906]
[1734374637819,0.02566631,4079.6,4079.0,0.7886]
[1734374638268,0.02566631,4079.6,4078.9,6.44]
[1734374638470,0.22677585,4079.5,4078.9,6.44]
[1734374638770,0.02566631,4079.6,4078.9,6.44]
[1734374638771,0.22677585,4079.4,4078.9,6.44]
[1734374638939,0.02566631,4079.6,4077.6,3.44]
[1734374638940,2.45147,4079.2,4077.6,3.44]
[1734374639122,2.45147,4079.2,4075.7,0.99483392]
[1734374639123,0.8137,4079.0,4077.1,0.35091462]
[1734374639326,0.22677585,4078.9,4077.2,0.4812677]
[1734374639556,0.22677585,4078.9,4076.8,3.44]
[1734374639852,0.22677585,4078.9,4076.8,3.56867877]
[1734374639853,2.4517,4078.8,4076.8,3.56867877]
[1734374640096,0.22677585,4078.9,4077.1,0.48381332]
[1734374640097,0.22677585,4078.7,4077.1,0.48381332]
[1734374640255,2.45215,4078.1,4077.1,0.48381332]
[1734374640609,0.26784259,4078.6,4076.4,3.44]
[1734374640921,0.22679175,4078.5,4077.1,3.44]
[1734374641054,3.3220443,4079.7,4077.1,3.44]
[1734374641055,0.82616631,4079.6,4077.4,4.2175]
[1734374641260,0.22671811,4079.5,4077.6,0.75]
[1734374641509,0.02566631,4079.6,4078.2,3.44]
[1734374641812,0.02566631,4079.6,4078.5,0.75]
[1734374641948,0.02566631,4079.6,4078.8,3.44]
[1734374642149,0.02566631,4079.6,4078.9,3.0]
[1734374642354,0.02566631,4079.6,4079.2,0.75]
[1734374642768,0.02566631,4079.6,4079.3,0.36910251]
[1734374642986,0.02566631,4079.6,4079.3,0.72001713]
[1734374643229,0.02566631,4079.6,4079.5,6.44]
[1734374643390,0.02566631,4079.6,4079.5,7.60341462]
[1734374643700,0.02566631,4079.6,4079.5,7.93601713]
[1734374644499,0.02566631,4079.6,4079.5,4.14510251]
[1734374644653,0.02566631,4079.6,4078.3,3.44]
[1734374644654,0.02566631,4079.6,4078.8,0.7764]
[1734374645160,0.24767763,4079.5,4078.8,0.7764]
[1734374645363,0.02566631,4079.6,4078.8,0.7764]
[1734374645801,0.02566631,4079.6,4078.8,1.10900251]
[1734374646006,0.02566631,4079.6,4078.9,0.33260251]
[1734374646263,0.02566631,4079.6,4078.8,0.7764]
[1734374647170,0.02566631,4079.6,4078.8,0.90250455]
[1734374647400,0.02566631,4079.6,4078.8,0.7764]
[1734374648126,0.02566631,4079.6,4078.1,0.12503787]
[1734374648414,0.22646432,4079.5,4078.1,0.12503787]
[1734374648615,0.22646432,4079.4,4078.2,0.852816]
[1734374648830,0.02566631,4079.6,4078.2,0.852816]
[1734374648976,0.02566631,4079.6,4078.4,0.8283]
[1734374649344,0.02566631,4079.6,4078.5,4.61921462]
[1734374649573,0.02566631,4079.6,4078.7,0.7866]
[1734374650642,3.34326717,4079.6,4078.7,0.7866]
[1734374650806,0.22678778,4079.5,4078.7,0.7866]
[1734374651014,0.02566631,4079.6,4078.7,0.7866]
[1734374652446,0.02566631,4079.6,4079.2,3.8121]
[1734374652641,0.02566631,4079.6,4079.3,1.02521]
[1734374652799,0.02566631,4079.6,4079.2,7.2521]
[1734374653244,0.02566631,4079.6,4079.2,3.8121]
[1734374653425,160.0,4080.0,4078.2,0.62196008]
[1734374653426,153.0399567,4080.0,4079.9,7.37540086]
[1734374653637,137.74906823,4080.0,4079.9,8.39273172]
[1734374653803,135.9953618,4080.0,4079.9,8.22600363]
[1734374654004,135.9953618,4080.0,4079.9,8.47600363]
[1734374654005,128.38890519,4080.0,4079.9,8.47600363]
[1734374654251,125.25880519,4080.0,4079.9,9.70000363]
[1734374654569,120.88303092,4080.0,4079.9,10.25000363]
[1734374654968,112.29729444,4080.0,4079.9,9.00630162]
[1734374655181,100.06691796,4080.0,4079.9,9.00630162]
[1734374655318,98.82379774,4080.0,4079.9,8.8226545]
[1734374655526,98.65069364,4080.0,4079.9,8.69515168]
[1734374655812,98.65069364,4080.0,4079.9,8.57392006]
[1734374657124,98.64571596,4080.0,4079.9,8.57392006]
[1734374657419,95.60780195,4080.0,4079.9,8.57392006]
[1734374657624,90.70584195,4080.0,4079.9,7.09992006]
[1734374657850,90.70584195,4080.0,4079.9,7.22464706]
[1734374658061,90.70584195,4080.0,4079.9,7.34898232]
[1734374658259,90.70584195,4080.0,4079.9,5.03018146]
[1734374658471,90.70584195,4080.0,4079.9,4.56897378]
[1734374658472,87.32150826,4080.0,4079.9,4.56897378]
[1734374658771,87.32150826,4080.0,4079.9,7.59365493]
[1734374659323,87.32150826,4080.0,4079.9,9.39057464]
[1734374659520,87.32150826,4080.0,4079.9,9.69376298]
[1734374659775,87.32150826,4080.0,4079.9,10.68813928]
[1734374660143,87.32150826,4080.0,4079.9,8.92774747]
[1734374660325,87.32150826,4080.0,4079.9,8.30163942]
[1734374660525,82.79055831,4080.0,4079.9,0.315327]
[1734374660772,82.79055831,4080.0,4079.9,0.36014602]
[1734374662155,82.79055831,4080.0,4079.9,0.91014602]
[1734374662490,82.79055831,4080.0,4079.9,0.20541902]
[1734374662775,82.79055831,4080.0,4079.9,0.04481902]
[1734374665138,82.79055831,4080.0,4079.9,4.51881902]
[1734374665326,82.79055831,4080.0,4079.9,5.24201736]
[1734374665532,82.79055831,4080.0,4079.9,2.24201736]
[1734374665728,82.79055831,4080.0,4079.9,1.51881902]
[1734374666156,82.79055831,4080.0,4079.9,0.04481902]
[1734374667378,0.25,4079.7,4079.2,0.03]
[1734374667857,0.25,4079.7,4079.0,0.12580975]
[1734374668069,0.25,4079.7,4078.9,0.02749044]
[1734374669476,2.80613921,4079.7,4078.9,0.02749044]
[1734374669677,0.25,4079.1,4078.9,0.02749044]
[1734374670180,82.79055831,4080.0,4078.9,0.02749044]
[1734374670481,82.79055831,4080.0,4078.9,0.05200218]
[1734374670633,82.79055831,4080.0,4079.0,0.02749044]
[1734374670634,83.04055831,4080.0,4079.0,0.02749044]
[1734374670962,83.04055831,4080.0,4079.1,0.55]
[1734374671634,83.04055831,4080.0,4079.0,0.02749044]
[1734374672940,81.52656417,4080.0,4079.0,0.02749044]
[1734374673470,0.25,4079.8,4079.0,0.02749044]
[1734374674184,81.27656417,4080.0,4079.0,0.02749044]
[1734374674185,0.25,4079.4,4079.0,0.02749044]
[1734374674537,0.7904,4079.6,4078.6,0.12528323]
[1734374674538,0.02042005,4079.6,4078.7,0.02749044]
[1734374675449,0.02042005,4079.6,4078.0,0.12003454]
[1734374675450,0.02042005,4079.6,4078.0,0.02749044]
[1734374675651,0.02042005,4079.6,4078.1,0.02451406]
[1734374675652,0.22767173,4079.5,4078.1,0.02451406]
[1734374675851,0.22767173,4079.4,4078.1,0.02451406]
[1734374676050,0.02042005,4079.6,4078.1,0.02451406]
[1734374676253,81.27656417,4080.0,4078.4,0.7712]
[1734374676452,0.25533211,4079.8,4078.5,0.02450785]
[1734374676751,0.22767711,4079.7,4078.6,0.02749044]
[1734374676951,83.83270338,4080.0,4078.7,0.02451229]
[1734374677206,0.22766999,4079.9,4078.6,0.05200012]
[1734374677356,0.22766999,4079.8,4078.6,0.05200012]
[1734374677551,81.27656417,4080.0,4078.6,0.05200012]
[1734374677751,1.00038834,4079.9,4078.7,0.29960343]
[1734374677953,0.7727,4079.9,4078.6,0.05200012]
[1734374678290,0.7727,4079.9,4078.7,0.55]
[1734374678441,0.7727,4079.9,4078.8,1.52599973]
[1734374679078,0.7727,4079.9,4078.8,1.50149044]
[1734374679260,0.7727,4079.9,4078.9,0.50759997]
[1734374679659,0.7727,4079.9,4078.8,0.02457519]
[1734374680187,0.22778987,4079.8,4078.8,0.02457519]
[1734374680397,0.7727,4079.9,4078.8,0.02457519]
[1734374680600,0.22780821,4079.8,4078.8,0.02457519]
[1734374680809,0.7727,4079.9,4078.8,0.02457519]
[1734374681034,0.7727,4079.9,4078.9,0.0245102]
[1734374681249,0.7727,4079.9,4079.1,0.55]
[1734374681537,81.27656417,4080.0,4079.1,0.55]
[1734374681834,78.2971277,4080.0,4079.9,0.01457519]
[1734374682028,73.27757534,4080.0,4079.9,8.36867519]
[1734374682321,69.87427534,4080.0,4079.9,11.14942494]
[1734374682529,69.87427534,4080.0,4079.9,12.14118045]
[1734374682744,69.87427534,4080.0,4079.9,11.14792315]
[1734374683106,69.87427534,4080.0,4079.9,6.54792315]
[1734374683343,69.87427534,4080.0,4079.9,5.04824895]
[1734374683488,69.87427534,4080.0,4079.9,6.52224895]
[1734374684907,68.00247534,4080.0,4079.9,6.52224895]
[1734374685310,67.24354649,4080.0,4079.9,6.52224895]
[1734374686644,67.24354649,4080.0,4079.9,7.38969409]
[1734374686855,64.52485063,4080.0,4079.9,9.44081929]
[1734374687020,64.52485063,4080.0,4079.9,8.21014417]
[1734374687230,64.52485063,4080.0,4079.9,1.59915548]
[1734374687434,64.52485063,4080.0,4079.9,3.07315548]
[1734374687771,64.52485063,4080.0,4079.9,6.07315548]
[1734374688559,64.52485063,4080.0,4079.9,6.62315548]
[1734374689866,64.52485063,4080.0,4079.9,2.14915548]
[1734374690216,64.52485063,4080.0,4079.9,1.59915548]
[1734374690468,63.09178562,4080.0,4079.9,1.59915548]
[1734374690983,63.09178562,4080.0,4079.9,1.61159409]
[1734374692129,53.04980988,4080.0,4079.9,7.79147331]
[1734374692330,53.04980988,4080.0,4079.9,8.98849921]
[1734374692548,49.0841916,4080.0,4079.9,9.71015584]
[1734374692765,49.0841916,4080.0,4079.9,7.65652593]
[1734374693458,49.0841916,4080.0,4079.9,7.28091237]
[1734374693632,49.0841916,4080.0,4079.9,9.85691237]
[1734374694537,49.0841916,4080.0,4079.9,9.98167141]
[1734374695421,49.0841916,4080.0,4079.9,5.90489765]
[1734374699882,49.0841916,4080.0,4079.9,6.7278877]
[1734374700081,49.0841916,4080.0,4079.9,9.3294539]
[1734374700287,49.0841916,4080.0,4079.9,8.33769839]
[1734374700492,49.0841916,4080.0,4079.9,11.45608122]
[1734374700672,47.09446526,4080.0,4079.9,12.55899697]
[1734374700876,43.47010683,4080.0,4079.9,15.67898852]
[1734374701091,42.98232476,4080.0,4079.9,15.81645268]
[1734374701390,39.364596,4080.0,4079.9,15.31963491]
[1734374701588,30.75376573,4080.0,4079.9,14.82260409]
[1734374701768,28.03531023,4080.0,4079.9,11.67408036]
[1734374701973,28.03531023,4080.0,4079.9,12.66957664]
[1734374702299,28.03531023,4080.0,4079.9,11.98336046]
[1734374702883,28.03531023,4080.0,4079.9,10.74949629]
[1734374703259,28.03531023,4080.0,4079.9,6.14568104]
[1734374703466,28.03531023,4080.0,4079.9,5.77006748]
[1734374704773,28.03531023,4080.0,4079.9,0.73362887]
[1734374705498,28.03531023,4080.0,4079.9,0.73123628]
[1734374705658,28.03531023,4080.0,4079.9,1.39147849]
[1734374705852,27.72673023,4080.0,4079.9,0.58112414]
[1734374706171,27.52101023,4080.0,4079.9,8.27723036]
[1734374706324,27.52101023,4080.0,4079.9,16.367962]
[1734374706524,27.52101023,4080.0,4079.9,19.19501946]
[1734374706842,27.52101023,4080.0,4079.9,19.19313957]
[1734374707000,27.52101023,4080.0,4079.9,16.70726759]
[1734374707879,27.52101023,4080.0,4079.9,18.69684957]
[1734374708081,27.52101023,4080.0,4079.9,15.50653671]
[1734374708286,27.52101023,4080.0,4079.9,15.63128937]
[1734374708531,27.52101023,4080.0,4079.9,12.49318861]
[1734374708708,26.6193366,4080.0,4079.9,13.48832719]
[1734374708885,26.3141366,4080.0,4079.9,13.48831276]
[1734374709888,26.3141366,4080.0,4079.9,6.02883854]
[1734374710237,26.3141366,4080.0,4079.9,0.56868553]
[1734374711038,26.3141366,4080.0,4079.9,0.58112414]
[1734374711257,26.3141366,4080.0,4079.9,0.97291809]
[1734374712629,26.3141366,4080.0,4079.9,0.58112414]
[1734374712803,28.87027581,4080.0,4079.9,0.56868553]
[1734374713202,26.3141366,4080.0,4079.9,0.56868553]
[1734374715701,26.3141366,4080.0,4079.9,1.77542]
[1734374715901,26.3141366,4080.0,4079.9,0.58112414]
[1734374716102,26.3141366,4080.0,4079.9,1.32992414]
[1734374716902,27.0678366,4080.0,4079.9,1.31748553]
[1734374717113,29.62397581,4080.0,4079.9,1.31748553]
[1734374718041,29.62397581,4080.0,4079.9,2.55817916]
[1734374718042,26.3141366,4080.0,4079.9,2.55817916]
[1734374718205,26.3141366,4080.0,4079.9,5.5582273]
[1734374718407,26.3141366,4080.0,4079.9,1.73385416]
[1734374719034,22.14942655,4080.0,4079.9,5.66326678]
[1734374719346,22.14942655,4080.0,4079.9,11.76900794]
[1734374719917,21.05016406,4080.0,4079.9,13.41757853]
[1734374720644,21.05016406,4080.0,4079.9,12.33764118]
[1734374720846,21.05016406,4080.0,4079.9,9.19300794]
[1734374721147,2.3984238,4080.0,4079.9,14.44622527]
[1734374721355,0.6852238,4080.0,4079.9,14.44622527]
[1734374721652,0.00688,4081.0,4080.1,4.045]
[1734374721855,0.00688,4081.0,4080.5,7.36000569]
[1734374722010,0.00688,4081.0,4080.9,0.01243861]
[1734374722205,0.00688,4081.0,4080.9,0.56243861]
[1734374723060,0.00688,4081.0,4080.9,0.01243861]
[1734374723359,0.00688,4081.0,4080.6,0.55]
[1734374723506,0.00688,4081.0,4080.7,2.36319498]
[1734374723713,0.00688,4081.0,4080.7,0.3016338]
[1734374724249,0.00688,4081.0,4080.8,0.82487844]
[1734374724449,0.7946,4080.9,4080.4,0.99733801]
[1734374724619,0.7946,4080.9,4080.5,2.06236546]
[1734374724821,0.7946,4080.9,4080.6,0.82494618]
[1734374725036,0.7946,4080.9,4080.3,1.37900925]
[1734374725336,0.7946,4080.9,4080.4,5.0628744]
[1734374725541,0.7946,4080.9,4080.5,0.82514976]
[1734374725745,0.7946,4080.9,4080.4,0.79231934]
[1734374726054,0.7946,4080.9,4080.2,0.55]
[1734374726298,0.7946,4080.9,4080.3,0.82603387]
[1734374726951,0.7946,4080.9,4080.3,0.76618267]
[1734374727740,0.7946,4080.9,4080.4,2.83258779]
[1734374727923,0.7946,4080.9,4080.5,3.82657871]
[1734374728124,2.69417844,4080.8,4080.6,0.82650301]
[1734374728409,2.69417844,4080.8,4080.4,3.76618267]
[1734374728743,2.69417844,4080.8,4080.5,0.82660258]
[1734374729063,2.69417844,4080.8,4080.4,0.38167124]
[1734374729559,2.69417844,4080.8,4080.1,0.55]
[1734374729853,2.69417844,4080.8,4080.0,3.39451143]
[1734374729854,2.69417844,4080.8,4080.2,0.82650849]
[1734374730077,2.69417844,4080.8,4080.3,0.82636035]
[1734374730359,2.69417844,4080.8,4080.5,3.55]
[1734374730654,2.69417844,4080.8,4080.5,0.55]
[1734374730857,2.69417844,4080.8,4080.1,4.00733801]
[1734374731013,0.7946,4080.9,4080.2,2.06551611]
[1734374731217,0.7946,4080.9,4080.3,0.82625505]
[1734374731518,0.7946,4080.9,4080.1,0.39451143]
[1734374731716,0.7946,4080.9,4080.2,0.82638244]
[1734374732914,0.7946,4080.9,4080.1,0.39451143]
[1734374733430,0.7946,4080.9,4080.2,2.576]
[1734374733665,0.7946,4080.9,4080.1,0.01]
[1734374734281,0.7946,4080.9,4080.1,0.74681923]
[1734374734479,0.7946,4080.9,4080.2,0.3523078]
[1734374734780,0.7946,4080.9,4080.2,0.37681087]
[1734374735081,0.7946,4080.9,4080.3,3.38451143]
[1734374735229,0.7946,4080.9,4080.4,0.82677967]
[1734374735431,0.7946,4080.9,4080.3,0.3523078]
[1734374735634,0.7946,4080.9,4080.4,0.82674956]
[1734374735836,0.7946,4080.9,4080.3,0.3523078]
[1734374736083,0.7946,4080.9,4080.3,1.0303622]